[Event "Titled Tuesday Blitz January 03 Late 2023"]
[White "Jaferian, Koosha"]
[Black "Strahov, Andrej"]
[WhiteFideId "12507440"]
[BlackFideId "4165489"]
[WhiteElo "2233"]
[BlackElo "2398"]
[Result "0-1"]
[Round "10"]
[TimeControl "180+2"]
[Date "2023.01.03"]
[WhiteClock "0:00:06"]
[BlackClock "0:00:27"]

1. e4 {[%clk 0:02:58]}  d5 {[%clk 0:02:59]} 2. exd5 {[%clk 0:02:57]}  Qxd5 {[%clk 0:03:00]} 3. Nf3 {[%clk 0:02:56]}  Nf6 {[%clk 0:02:59]} 4. Be2 {[%clk 0:02:56]}  Bf5 {[%clk 0:02:53]} 5. d4 {[%clk 0:02:56]}  e6 {[%clk 0:02:53]} 6. c4 {[%clk 0:02:56]}  Qd8 {[%clk 0:02:53]} 7. Nc3 {[%clk 0:02:57]}  c6 {[%clk 0:02:53]} 8. O-O {[%clk 0:02:57]}  Nbd7 {[%clk 0:02:52]} 9. Bf4 {[%clk 0:02:51]}  Be7 {[%clk 0:02:52]} 10. Bd3 {[%clk 0:02:47]}  Bg4 {[%clk 0:02:46]} 11. h3 {[%clk 0:02:46]}  Bh5 {[%clk 0:02:46]} 12. Re1 {[%clk 0:02:45]}  O-O {[%clk 0:02:46]} 13. Be2 {[%clk 0:02:38]}  h6 {[%clk 0:02:44]} 14. Ne5 {[%clk 0:02:38]}  Bxe2 {[%clk 0:02:36]} 15. Qxe2 {[%clk 0:02:38]}  Qb6 {[%clk 0:02:36]} 16. Be3 {[%clk 0:02:30]}  Qc7 {[%clk 0:02:33]} 17. Bf4 {[%clk 0:02:28]}  Qb6 {[%clk 0:02:33]} 18. Be3 {[%clk 0:02:28]}  Qc7 {[%clk 0:02:33]} 19. Nf3 {[%clk 0:02:26]}  a6 {[%clk 0:02:23]} 20. Rad1 {[%clk 0:02:26]}  b5 {[%clk 0:02:19]} 21. Nd2 {[%clk 0:02:23]}  Nb6 {[%clk 0:02:16]} 22. b3 {[%clk 0:02:21]}  Bb4 {[%clk 0:02:12]} 23. Rc1 {[%clk 0:02:13]}  Qe7 {[%clk 0:02:07]} 24. d5 {[%clk 0:02:03]}  Rab8 {[%clk 0:01:31]} 25. Bxb6 {[%clk 0:01:54]}  Rxb6 {[%clk 0:01:30]} 26. dxe6 {[%clk 0:01:55]}  Rd8 {[%clk 0:01:16]} 27. exf7+ {[%clk 0:01:47]}  Qxf7 {[%clk 0:01:17]} 28. Nde4 {[%clk 0:01:29]}  Rbb8 {[%clk 0:01:12]} 29. Nxf6+ {[%clk 0:01:27]}  Qxf6 {[%clk 0:01:11]} 30. Ne4 {[%clk 0:01:27]}  Qe5 {[%clk 0:01:06]} 31. Red1 {[%clk 0:01:24]}  Rf8 {[%clk 0:01:04]} 32. Rd7 {[%clk 0:01:19]}  Rbe8 {[%clk 0:00:53]} 33. Qg4 {[%clk 0:01:14]}  g5 {[%clk 0:00:40]} 34. Ng3 {[%clk 0:00:58]}  Bc5 {[%clk 0:00:35]} 35. Rf1 {[%clk 0:00:53]}  Rxf2 {[%clk 0:00:32]} 36. Kh1 {[%clk 0:00:33]}  Qxg3 {[%clk 0:00:30]} 37. Rxf2 {[%clk 0:00:06]}  Re1+ {[%clk 0:00:27]} 0-1


[Site "https://www.chess.com"]

[Event "Titled Tuesday Blitz January 03 Late 2023"]
[White "Korchmar, Vasiliy"]
[Black "Goncalves, Davi Sulzbacher"]
[WhiteFideId "24131750"]
[BlackFideId "2154510"]
[WhiteElo "2438"]
[BlackElo "2282"]
[Result "0-1"]
[Round "10"]
[TimeControl "180+2"]
[Date "2023.01.03"]
[WhiteClock "0:00:15"]
[BlackClock "0:00:18"]

1. Nf3 {[%clk 0:02:53]}  c5 {[%clk 0:02:59]} 2. g3 {[%clk 0:02:53]}  Nf6 {[%clk 0:02:57]} 3. Bg2 {[%clk 0:02:53]}  g6 {[%clk 0:02:58]} 4. b3 {[%clk 0:02:52]}  Bg7 {[%clk 0:02:58]} 5. Bb2 {[%clk 0:02:51]}  O-O {[%clk 0:02:59]} 6. c4 {[%clk 0:02:51]}  d5 {[%clk 0:02:57]} 7. e3 {[%clk 0:02:47]}  Nc6 {[%clk 0:02:36]} 8. O-O {[%clk 0:02:46]}  d4 {[%clk 0:02:32]} 9. exd4 {[%clk 0:02:45]}  Nh5 {[%clk 0:02:32]} 10. Nc3 {[%clk 0:02:29]}  Nxd4 {[%clk 0:02:28]} 11. Nxd4 {[%clk 0:02:26]}  Bxd4 {[%clk 0:02:20]} 12. Na4 {[%clk 0:02:26]}  Bxb2 {[%clk 0:02:18]} 13. Nxb2 {[%clk 0:02:27]}  Nf6 {[%clk 0:02:13]} 14. Re1 {[%clk 0:02:23]}  Rb8 {[%clk 0:02:08]} 15. Na4 {[%clk 0:02:21]}  b6 {[%clk 0:02:06]} 16. Qe2 {[%clk 0:02:18]}  e6 {[%clk 0:02:00]} 17. Nc3 {[%clk 0:02:19]}  Bb7 {[%clk 0:01:58]} 18. Bxb7 {[%clk 0:02:18]}  Rxb7 {[%clk 0:01:59]} 19. Rad1 {[%clk 0:02:18]}  Rd7 {[%clk 0:01:58]} 20. Qf3 {[%clk 0:02:13]}  Rd3 {[%clk 0:01:49]} 21. Re3 {[%clk 0:02:07]}  Rd4 {[%clk 0:01:36]} 22. Nb5 {[%clk 0:02:04]}  Rd7 {[%clk 0:01:36]} 23. d3 {[%clk 0:01:55]}  Ne8 {[%clk 0:01:20]} 24. d4 {[%clk 0:01:34]}  a6 {[%clk 0:01:18]} 25. Nc3 {[%clk 0:01:24]}  cxd4 {[%clk 0:01:03]} 26. Red3 {[%clk 0:01:24]}  e5 {[%clk 0:00:48]} 27. Qe2 {[%clk 0:00:50]}  Nd6 {[%clk 0:00:29]} 28. Nd5 {[%clk 0:00:21]}  f6 {[%clk 0:00:28]} 29. f4 {[%clk 0:00:21]}  Re8 {[%clk 0:00:22]} 30. Rxd4 {[%clk 0:00:15]}  exd4 {[%clk 0:00:17]} 31. Nxf6+ {[%clk 0:00:14]}  Qxf6 {[%clk 0:00:17]} 32. Qxe8+ {[%clk 0:00:15]}  Nxe8 {[%clk 0:00:18]} 0-1


[Site "https://www.chess.com"]

[Event "Titled Tuesday Blitz January 03 Late 2023"]
[White "Sos Andreu, Eric"]
[Black "Haydon, David L"]
[WhiteFideId "22247017"]
[BlackFideId "415405"]
[WhiteElo "2352"]
[BlackElo "2253"]
[Result "1-0"]
[Round "10"]
[TimeControl "180+2"]
[Date "2023.01.03"]
[WhiteClock "0:00:06"]
[BlackClock "0:00:24"]

1. d4 {[%clk 0:02:54]}  c6 {[%clk 0:03:00]} 2. c4 {[%clk 0:02:53]}  d5 {[%clk 0:03:01]} 3. Nf3 {[%clk 0:02:54]}  Nf6 {[%clk 0:03:01]} 4. g3 {[%clk 0:02:51]}  e6 {[%clk 0:03:01]} 5. Bg2 {[%clk 0:02:52]}  Bd6 {[%clk 0:03:01]} 6. O-O {[%clk 0:02:52]}  Qe7 {[%clk 0:03:00]} 7. Qc2 {[%clk 0:02:53]}  Nbd7 {[%clk 0:03:00]} 8. b3 {[%clk 0:02:53]}  dxc4 {[%clk 0:02:59]} 9. bxc4 {[%clk 0:02:53]}  e5 {[%clk 0:03:00]} 10. e4 {[%clk 0:02:53]}  O-O {[%clk 0:02:58]} 11. Nc3 {[%clk 0:02:51]}  exd4 {[%clk 0:02:57]} 12. Nxd4 {[%clk 0:02:51]}  Ne5 {[%clk 0:02:53]} 13. Nf5 {[%clk 0:02:45]}  Bxf5 {[%clk 0:02:52]} 14. exf5 {[%clk 0:02:46]}  Nxc4 {[%clk 0:02:46]} 15. Bg5 {[%clk 0:02:46]}  Na3 {[%clk 0:02:41]} 16. Qb3 {[%clk 0:02:45]}  h6 {[%clk 0:02:35]} 17. Bxf6 {[%clk 0:02:43]}  gxf6 {[%clk 0:02:32]} 18. Rad1 {[%clk 0:02:40]}  Be5 {[%clk 0:02:28]} 19. Ne4 {[%clk 0:02:37]}  Rfd8 {[%clk 0:02:23]} 20. Bf3 {[%clk 0:02:31]}  Nb5 {[%clk 0:02:22]} 21. Qe3 {[%clk 0:02:27]}  Kg7 {[%clk 0:02:19]} 22. Bg2 {[%clk 0:02:27]}  Rxd1 {[%clk 0:02:16]} 23. Rxd1 {[%clk 0:02:26]}  Rd8 {[%clk 0:02:16]} 24. Re1 {[%clk 0:02:22]}  Nd4 {[%clk 0:02:14]} 25. Rb1 {[%clk 0:02:15]}  Nb5 {[%clk 0:02:07]} 26. a4 {[%clk 0:02:13]}  Na3 {[%clk 0:01:56]} 27. Rc1 {[%clk 0:02:06]}  b5 {[%clk 0:01:50]} 28. axb5 {[%clk 0:02:03]}  cxb5 {[%clk 0:01:48]} 29. h3 {[%clk 0:02:03]}  b4 {[%clk 0:01:48]} 30. Rc6 {[%clk 0:01:52]}  Nb5 {[%clk 0:01:35]} 31. Rc4 {[%clk 0:01:39]}  a5 {[%clk 0:01:30]} 32. Qb6 {[%clk 0:01:22]}  Rb8 {[%clk 0:01:18]} 33. Qxa5 {[%clk 0:01:20]}  b3 {[%clk 0:01:18]} 34. Rb4 {[%clk 0:00:59]}  b2 {[%clk 0:01:04]} 35. Rxb5 {[%clk 0:00:55]}  Rxb5 {[%clk 0:01:04]} 36. Qxb5 {[%clk 0:00:55]}  Qa3 {[%clk 0:01:03]} 37. Kh2 {[%clk 0:00:42]}  Qa1 {[%clk 0:00:58]} 38. Nd2 {[%clk 0:00:37]}  Qc1 {[%clk 0:00:57]} 39. Qd3 {[%clk 0:00:22]}  Qd1 {[%clk 0:00:52]} 40. Be4 {[%clk 0:00:16]}  h5 {[%clk 0:00:41]} 41. h4 {[%clk 0:00:16]}  Qe1 {[%clk 0:00:39]} 42. Kg2 {[%clk 0:00:16]}  Bc7 {[%clk 0:00:35]} 43. Nf3 {[%clk 0:00:14]}  Qc1 {[%clk 0:00:34]} 44. Qb1 {[%clk 0:00:14]}  Qc4 {[%clk 0:00:32]} 45. Qd3 {[%clk 0:00:11]}  Qb4 {[%clk 0:00:31]} 46. Nd2 {[%clk 0:00:08]}  Bb6 {[%clk 0:00:30]} 47. Nb1 {[%clk 0:00:08]}  Qc5 {[%clk 0:00:30]} 48. Qf3 {[%clk 0:00:08]}  Qd4 {[%clk 0:00:27]} 49. Bc2 {[%clk 0:00:07]}  Qc4 {[%clk 0:00:26]} 50. Bd3 {[%clk 0:00:07]}  Qc1 {[%clk 0:00:25]} 51. Qxh5 {[%clk 0:00:06]}  Qc5 {[%clk 0:00:19]} 52. Qg4+ {[%clk 0:00:06]}  Kf8 {[%clk 0:00:19]} 53. Qf3 {[%clk 0:00:07]}  Qd4 {[%clk 0:00:19]} 54. h5 {[%clk 0:00:07]}  Kg7 {[%clk 0:00:16]} 55. Bc2 {[%clk 0:00:06]}  Kh7 {[%clk 0:00:16]} 56. Bd3 {[%clk 0:00:06]}  Qe5 {[%clk 0:00:16]} 57. Qg4 {[%clk 0:00:06]}  Bd4 {[%clk 0:00:17]} 58. h6 {[%clk 0:00:05]}  Kxh6 {[%clk 0:00:17]} 59. Qh4+ {[%clk 0:00:05]}  Kg7 {[%clk 0:00:17]} 60. Qg4+ {[%clk 0:00:06]}  Kf8 {[%clk 0:00:18]} 61. Qf3 {[%clk 0:00:07]}  Qe1 {[%clk 0:00:18]} 62. Qe2 {[%clk 0:00:05]}  Qc1 {[%clk 0:00:18]} 63. Bc2 {[%clk 0:00:05]}  Qg5 {[%clk 0:00:19]} 64. f4 {[%clk 0:00:05]}  Be5 {[%clk 0:00:20]} 65. fxg5 {[%clk 0:00:05]}  Bxg3 {[%clk 0:00:21]} 66. gxf6 {[%clk 0:00:04]}  Be5 {[%clk 0:00:21]} 67. Qxe5 {[%clk 0:00:04]}  Kg8 {[%clk 0:00:22]} 68. Qe8+ {[%clk 0:00:05]}  Kh7 {[%clk 0:00:23]} 69. Qxf7+ {[%clk 0:00:05]}  Kh6 {[%clk 0:00:24]} 70. Qg6# {[%clk 0:00:06]} 1-0


[Site "https://www.chess.com"]

[Event "Titled Tuesday Blitz January 03 Late 2023"]
[White "Graif, William"]
[Black "Zeynalli, Rashad"]
[WhiteFideId "2609835"]
[BlackFideId "13403320"]
[WhiteElo "2304"]
[BlackElo "2200"]
[Result "0-1"]
[Round "10"]
[TimeControl "180+2"]
[Date "2023.01.03"]
[WhiteClock "0:00:21"]
[BlackClock "0:01:43"]

1. e4 {[%clk 0:02:55]}  c5 {[%clk 0:02:59]} 2. Nc3 {[%clk 0:02:54]}  Nc6 {[%clk 0:02:58]} 3. Bb5 {[%clk 0:02:54]}  Nd4 {[%clk 0:02:58]} 4. Nf3 {[%clk 0:02:53]}  g6 {[%clk 0:02:57]} 5. Nxd4 {[%clk 0:02:46]}  cxd4 {[%clk 0:02:56]} 6. Ne2 {[%clk 0:02:47]}  Bg7 {[%clk 0:02:54]} 7. O-O {[%clk 0:02:42]}  Nf6 {[%clk 0:02:51]} 8. d3 {[%clk 0:02:35]}  O-O {[%clk 0:02:50]} 9. Ba4 {[%clk 0:02:08]}  d5 {[%clk 0:02:47]} 10. e5 {[%clk 0:02:01]}  Ng4 {[%clk 0:02:46]} 11. f4 {[%clk 0:01:54]}  f6 {[%clk 0:02:42]} 12. h3 {[%clk 0:01:43]}  Ne3 {[%clk 0:02:42]} 13. Bxe3 {[%clk 0:01:43]}  dxe3 {[%clk 0:02:43]} 14. d4 {[%clk 0:01:44]}  fxe5 {[%clk 0:02:41]} 15. fxe5 {[%clk 0:01:40]}  Rxf1+ {[%clk 0:02:38]} 16. Qxf1 {[%clk 0:01:39]}  Qa5 {[%clk 0:02:27]} 17. Nc3 {[%clk 0:01:27]}  Be6 {[%clk 0:02:18]} 18. Re1 {[%clk 0:01:17]}  Qb4 {[%clk 0:02:10]} 19. Nb5 {[%clk 0:00:58]}  Qxa4 {[%clk 0:02:05]} 20. Nc7 {[%clk 0:00:56]}  Rf8 {[%clk 0:02:06]} 21. Qe2 {[%clk 0:00:47]}  Qd7 {[%clk 0:01:53]} 22. Nxe6 {[%clk 0:00:45]}  Qxe6 {[%clk 0:01:54]} 23. Qxe3 {[%clk 0:00:45]}  Qf5 {[%clk 0:01:53]} 24. c3 {[%clk 0:00:43]}  Bh6 {[%clk 0:01:52]} 25. Qe2 {[%clk 0:00:40]}  Bf4 {[%clk 0:01:51]} 26. g4 {[%clk 0:00:28]}  Qg5 {[%clk 0:01:48]} 27. Qb5 {[%clk 0:00:26]}  Qh4 {[%clk 0:01:45]} 28. Qxd5+ {[%clk 0:00:25]}  Kh8 {[%clk 0:01:45]} 29. Re2 {[%clk 0:00:21]}  Qxh3 {[%clk 0:01:43]} 0-1


[Site "https://www.chess.com"]

[Event "Titled Tuesday Blitz January 03 Late 2023"]
[White "Pein, Jonathan"]
[Black "De La Colina, Nicolas"]
[WhiteFideId "417092"]
[BlackFideId "30946921"]
[WhiteElo "2265"]
[BlackElo "2244"]
[Result "1-0"]
[Round "10"]
[TimeControl "180+2"]
[Date "2023.01.03"]
[WhiteClock "0:02:07"]
[BlackClock "0:00:57"]

1. e4 {[%clk 0:03:00]}  c5 {[%clk 0:02:55]} 2. g3 {[%clk 0:02:56]}  g6 {[%clk 0:02:48]} 3. Bg2 {[%clk 0:02:57]}  Bg7 {[%clk 0:02:49]} 4. Ne2 {[%clk 0:02:58]}  h5 {[%clk 0:02:49]} 5. h3 {[%clk 0:02:57]}  Nc6 {[%clk 0:02:43]} 6. c3 {[%clk 0:02:56]}  e5 {[%clk 0:01:50]} 7. a3 {[%clk 0:02:56]}  Nge7 {[%clk 0:01:45]} 8. b4 {[%clk 0:02:56]}  d6 {[%clk 0:01:45]} 9. d3 {[%clk 0:02:54]}  Be6 {[%clk 0:01:42]} 10. Be3 {[%clk 0:02:53]}  b6 {[%clk 0:01:41]} 11. b5 {[%clk 0:02:48]}  Na5 {[%clk 0:01:41]} 12. c4 {[%clk 0:02:48]}  Qd7 {[%clk 0:01:39]} 13. Nbc3 {[%clk 0:02:44]}  h4 {[%clk 0:01:39]} 14. g4 {[%clk 0:02:44]}  f5 {[%clk 0:01:39]} 15. exf5 {[%clk 0:02:43]}  gxf5 {[%clk 0:01:40]} 16. Bxa8 {[%clk 0:02:43]}  fxg4 {[%clk 0:01:37]} 17. hxg4 {[%clk 0:02:40]}  Bxg4 {[%clk 0:01:38]} 18. Qc2 {[%clk 0:02:35]}  Nf5 {[%clk 0:01:37]} 19. Bd5 {[%clk 0:02:19]}  h3 {[%clk 0:01:29]} 20. O-O-O {[%clk 0:02:18]}  h2 {[%clk 0:01:24]} 21. Ne4 {[%clk 0:02:11]}  Nb3+ {[%clk 0:00:57]} 22. Qxb3 {[%clk 0:02:09]}  Bxe2 {[%clk 0:00:57]} 23. Bc6 {[%clk 0:02:07]} 1-0


[Site "https://www.chess.com"]

[Event "Titled Tuesday Blitz January 03 Late 2023"]
[White "Rian, Kapriaga"]
[Black "Mendez Fortes, Eduardo Jesus"]
[WhiteFideId "7103263"]
[BlackFideId "3502376"]
[WhiteElo "2089"]
[BlackElo "2250"]
[Result "0-1"]
[Round "10"]
[TimeControl "180+2"]
[Date "2023.01.03"]
[WhiteClock "0:00:01"]
[BlackClock "0:01:16"]

1. d4 {[%clk 0:03:00]}  Nf6 {[%clk 0:02:59]} 2. Nf3 {[%clk 0:03:01]}  d5 {[%clk 0:02:59]} 3. Bf4 {[%clk 0:03:01]}  c5 {[%clk 0:02:59]} 4. e3 {[%clk 0:03:01]}  Nc6 {[%clk 0:03:00]} 5. Nbd2 {[%clk 0:03:00]}  cxd4 {[%clk 0:02:59]} 6. exd4 {[%clk 0:03:00]}  Qb6 {[%clk 0:02:52]} 7. Nb3 {[%clk 0:02:59]}  Bf5 {[%clk 0:02:52]} 8. a4 {[%clk 0:02:58]}  a6 {[%clk 0:02:52]} 9. a5 {[%clk 0:02:56]}  Qd8 {[%clk 0:02:53]} 10. Bd3 {[%clk 0:02:50]}  Bxd3 {[%clk 0:02:53]} 11. Qxd3 {[%clk 0:02:50]}  e6 {[%clk 0:02:53]} 12. O-O {[%clk 0:02:49]}  Be7 {[%clk 0:02:53]} 13. c3 {[%clk 0:02:48]}  O-O {[%clk 0:02:53]} 14. Ne5 {[%clk 0:02:47]}  Nxe5 {[%clk 0:02:52]} 15. Bxe5 {[%clk 0:02:47]}  Nd7 {[%clk 0:02:52]} 16. Rfe1 {[%clk 0:02:39]}  Nb8 {[%clk 0:02:50]} 17. Bxb8 {[%clk 0:02:32]}  Rxb8 {[%clk 0:02:48]} 18. Nc1 {[%clk 0:02:28]}  b5 {[%clk 0:02:36]} 19. axb6 {[%clk 0:02:27]}  Rxb6 {[%clk 0:02:32]} 20. b4 {[%clk 0:02:24]}  Qc8 {[%clk 0:02:31]} 21. Nb3 {[%clk 0:02:22]}  Qc6 {[%clk 0:02:22]} 22. Ra3 {[%clk 0:02:15]}  Rc8 {[%clk 0:02:06]} 23. Nc5 {[%clk 0:02:13]}  Ra8 {[%clk 0:01:54]} 24. Rea1 {[%clk 0:02:09]}  g6 {[%clk 0:01:54]} 25. g3 {[%clk 0:02:09]}  e5 {[%clk 0:01:51]} 26. Rxa6 {[%clk 0:00:38]}  Raxa6 {[%clk 0:01:49]} 27. Nxa6 {[%clk 0:00:36]}  e4 {[%clk 0:01:49]} 28. Qf1 {[%clk 0:00:13]}  Qxc3 {[%clk 0:01:46]} 29. Nc5 {[%clk 0:00:11]}  Rxb4 {[%clk 0:01:40]} 30. Ra8+ {[%clk 0:00:09]}  Kg7 {[%clk 0:01:40]} 31. h4 {[%clk 0:00:08]}  Qxd4 {[%clk 0:01:37]} 32. Nd7 {[%clk 0:00:06]}  Rb7 {[%clk 0:01:26]} 33. Nb8 {[%clk 0:00:03]}  Qb6 {[%clk 0:01:22]} 34. Na6 {[%clk 0:00:03]}  Ra7 {[%clk 0:01:20]} 35. Rxa7 {[%clk 0:00:02]}  Qxa7 {[%clk 0:01:21]} 36. Qb5 {[%clk 0:00:02]}  d4 {[%clk 0:01:19]} 37. Nb8 {[%clk 0:00:01]}  d3 {[%clk 0:01:16]} 0-1


[Site "https://www.chess.com"]

[Event "Titled Tuesday Blitz January 03 Late 2023"]
[White "Stachanczyk, Jacek"]
[Black "Erdogdu, Mert"]
[WhiteFideId "1116657"]
[BlackFideId "6301495"]
[WhiteElo "2147"]
[BlackElo "2413"]
[Result "1-0"]
[Round "10"]
[TimeControl "180+2"]
[Date "2023.01.03"]
[WhiteClock "0:00:37"]
[BlackClock "0:00:07"]

1. e4 {[%clk 0:02:58]}  c5 {[%clk 0:02:59]} 2. Nf3 {[%clk 0:02:58]}  d6 {[%clk 0:03:00]} 3. d4 {[%clk 0:02:57]}  cxd4 {[%clk 0:03:00]} 4. Nxd4 {[%clk 0:02:58]}  Nf6 {[%clk 0:03:01]} 5. Nc3 {[%clk 0:02:58]}  a6 {[%clk 0:03:02]} 6. Bg5 {[%clk 0:02:58]}  e6 {[%clk 0:03:02]} 7. f4 {[%clk 0:02:57]}  Qb6 {[%clk 0:03:01]} 8. Qd3 {[%clk 0:02:53]}  Nc6 {[%clk 0:03:01]} 9. Nxc6 {[%clk 0:02:41]}  bxc6 {[%clk 0:03:00]} 10. O-O-O {[%clk 0:02:33]}  Rb8 {[%clk 0:02:59]} 11. b3 {[%clk 0:02:34]}  d5 {[%clk 0:03:00]} 12. Be2 {[%clk 0:02:13]}  h6 {[%clk 0:02:45]} 13. Bh4 {[%clk 0:02:10]}  Be7 {[%clk 0:02:31]} 14. Bg3 {[%clk 0:01:57]}  O-O {[%clk 0:02:17]} 15. f5 {[%clk 0:01:43]}  exf5 {[%clk 0:02:12]} 16. exd5 {[%clk 0:01:40]}  cxd5 {[%clk 0:02:06]} 17. Bxb8 {[%clk 0:01:38]}  Qxb8 {[%clk 0:02:06]} 18. Nxd5 {[%clk 0:01:36]}  Nxd5 {[%clk 0:02:04]} 19. Qxd5 {[%clk 0:01:37]}  Be6 {[%clk 0:02:01]} 20. Qa5 {[%clk 0:01:35]}  Bf6 {[%clk 0:01:55]} 21. g3 {[%clk 0:01:30]}  f4 {[%clk 0:01:46]} 22. gxf4 {[%clk 0:01:20]}  Qxf4+ {[%clk 0:01:45]} 23. Kb1 {[%clk 0:01:21]}  Rc8 {[%clk 0:01:37]} 24. Rhf1 {[%clk 0:01:14]}  Qh4 {[%clk 0:01:16]} 25. Qxa6 {[%clk 0:01:06]}  g6 {[%clk 0:00:48]} 26. Rxf6 {[%clk 0:01:04]}  Qxf6 {[%clk 0:00:47]} 27. Bc4 {[%clk 0:01:00]}  Qc3 {[%clk 0:00:23]} 28. Bd3 {[%clk 0:00:50]}  Kg7 {[%clk 0:00:18]} 29. Rf1 {[%clk 0:00:47]}  Rc5 {[%clk 0:00:17]} 30. Qd6 {[%clk 0:00:44]}  Rd5 {[%clk 0:00:11]} 31. Qg3 {[%clk 0:00:43]}  Rg5 {[%clk 0:00:08]} 32. Qe3 {[%clk 0:00:42]}  Re5 {[%clk 0:00:07]} 33. Qc1 {[%clk 0:00:40]}  Rd5 {[%clk 0:00:07]} 34. Qb2 {[%clk 0:00:41]}  Qxb2+ {[%clk 0:00:06]} 35. Kxb2 {[%clk 0:00:42]}  Re5 {[%clk 0:00:07]} 36. a4 {[%clk 0:00:42]}  f5 {[%clk 0:00:07]} 37. b4 {[%clk 0:00:40]}  g5 {[%clk 0:00:07]} 38. a5 {[%clk 0:00:41]}  Bd5 {[%clk 0:00:05]} 39. c4 {[%clk 0:00:39]}  Be4 {[%clk 0:00:05]} 40. Bxe4 {[%clk 0:00:39]}  fxe4 {[%clk 0:00:05]} 41. Kc3 {[%clk 0:00:40]}  e3 {[%clk 0:00:06]} 42. Kd4 {[%clk 0:00:39]}  e2 {[%clk 0:00:06]} 43. Re1 {[%clk 0:00:40]}  Re8 {[%clk 0:00:06]} 44. Kd3 {[%clk 0:00:40]}  Rd8+ {[%clk 0:00:05]} 45. Kc3 {[%clk 0:00:40]}  Re8 {[%clk 0:00:05]} 46. Kd3 {[%clk 0:00:40]}  Rd8+ {[%clk 0:00:06]} 47. Kxe2 {[%clk 0:00:40]}  Rd4 {[%clk 0:00:06]} 48. Rc1 {[%clk 0:00:40]}  Kf6 {[%clk 0:00:06]} 49. a6 {[%clk 0:00:39]}  Ke7 {[%clk 0:00:07]} 50. a7 {[%clk 0:00:37]} 1-0


[Site "https://www.chess.com"]

[Event "Titled Tuesday Blitz January 03 Late 2023"]
[White "Skvortsov, Andrei"]
[Black "Vovk, Orest"]
[WhiteFideId "24108600"]
[BlackFideId "14113490"]
[WhiteElo "2313"]
[BlackElo "2315"]
[Result "0-1"]
[Round "10"]
[TimeControl "180+2"]
[Date "2023.01.03"]
[WhiteClock "0:00:08"]
[BlackClock "0:00:05"]

1. d4 {[%clk 0:03:00]}  h6 {[%clk 0:02:57]} 2. c4 {[%clk 0:02:58]}  g5 {[%clk 0:02:57]} 3. Nc3 {[%clk 0:02:59]}  Bg7 {[%clk 0:02:57]} 4. h4 {[%clk 0:02:59]}  c5 {[%clk 0:02:57]} 5. d5 {[%clk 0:02:56]}  Bxc3+ {[%clk 0:02:57]} 6. bxc3 {[%clk 0:02:57]}  Qa5 {[%clk 0:02:57]} 7. hxg5 {[%clk 0:02:54]}  hxg5 {[%clk 0:02:57]} 8. Rxh8 {[%clk 0:02:40]}  Qxc3+ {[%clk 0:02:57]} 9. Qd2 {[%clk 0:02:39]}  Qxh8 {[%clk 0:02:57]} 10. Qxg5 {[%clk 0:02:28]}  Qc3+ {[%clk 0:02:56]} 11. Kd1 {[%clk 0:02:27]}  Qd4+ {[%clk 0:02:53]} 12. Ke1 {[%clk 0:02:18]}  Qc3+ {[%clk 0:02:43]} 13. Kd1 {[%clk 0:02:16]}  Nf6 {[%clk 0:02:35]} 14. Qh4 {[%clk 0:02:07]}  d6 {[%clk 0:02:25]} 15. Rb1 {[%clk 0:02:07]}  Nbd7 {[%clk 0:01:22]} 16. Rb3 {[%clk 0:02:04]}  Qa1 {[%clk 0:01:15]} 17. Nf3 {[%clk 0:01:53]}  Nf8 {[%clk 0:01:09]} 18. Nd2 {[%clk 0:01:45]}  Bd7 {[%clk 0:00:59]} 19. g4 {[%clk 0:01:40]}  Ba4 {[%clk 0:00:55]} 20. g5 {[%clk 0:01:22]}  Qxa2 {[%clk 0:00:54]} 21. gxf6 {[%clk 0:01:19]}  Bxb3+ {[%clk 0:00:53]} 22. Ke1 {[%clk 0:01:20]}  Qc2 {[%clk 0:00:33]} 23. Nxb3 {[%clk 0:00:55]}  Qc3+ {[%clk 0:00:30]} 24. Bd2 {[%clk 0:00:52]}  Qxb3 {[%clk 0:00:31]} 25. f3 {[%clk 0:00:49]}  Ng6 {[%clk 0:00:18]} 26. Qh7 {[%clk 0:00:37]}  exf6 {[%clk 0:00:12]} 27. Qg8+ {[%clk 0:00:30]}  Nf8 {[%clk 0:00:12]} 28. Bh6 {[%clk 0:00:28]}  Ke7 {[%clk 0:00:11]} 29. Qg4 {[%clk 0:00:26]}  Qc3+ {[%clk 0:00:09]} 30. Bd2 {[%clk 0:00:23]}  Qa1+ {[%clk 0:00:09]} 31. Kf2 {[%clk 0:00:22]}  Qd4+ {[%clk 0:00:10]} 32. Qxd4 {[%clk 0:00:22]}  cxd4 {[%clk 0:00:11]} 33. e4 {[%clk 0:00:18]}  dxe3+ {[%clk 0:00:10]} 34. Kxe3 {[%clk 0:00:18]}  a5 {[%clk 0:00:10]} 35. Bc1 {[%clk 0:00:19]}  Nd7 {[%clk 0:00:09]} 36. Ba3 {[%clk 0:00:19]}  Nc5 {[%clk 0:00:09]} 37. Kd4 {[%clk 0:00:19]}  b6 {[%clk 0:00:07]} 38. Bh3 {[%clk 0:00:19]}  Rh8 {[%clk 0:00:06]} 39. Bg4 {[%clk 0:00:20]}  Rh4 {[%clk 0:00:07]} 40. Kc3 {[%clk 0:00:18]}  Rh2 {[%clk 0:00:07]} 41. Bc1 {[%clk 0:00:18]}  Rh1 {[%clk 0:00:06]} 42. Ba3 {[%clk 0:00:17]}  Ra1 {[%clk 0:00:06]} 43. Bb2 {[%clk 0:00:17]}  Rf1 {[%clk 0:00:06]} 44. Kc2 {[%clk 0:00:17]}  Na4 {[%clk 0:00:06]} 45. Bd4 {[%clk 0:00:18]}  Nc5 {[%clk 0:00:06]} 46. Be3 {[%clk 0:00:15]}  f5 {[%clk 0:00:06]} 47. Bh5 {[%clk 0:00:14]}  f6 {[%clk 0:00:06]} 48. Bd2 {[%clk 0:00:10]}  Rf2 {[%clk 0:00:06]} 49. Kd1 {[%clk 0:00:09]}  a4 {[%clk 0:00:06]} 50. Bc3 {[%clk 0:00:10]}  Rg2 {[%clk 0:00:05]} 51. Kc1 {[%clk 0:00:08]}  a3 {[%clk 0:00:06]} 52. f4 {[%clk 0:00:08]}  a2 {[%clk 0:00:05]} 53. Bd1 {[%clk 0:00:08]}  Nd3# {[%clk 0:00:05]} 0-1


[Site "https://www.chess.com"]